Workbook

Sheet Title
C1: Calculation practice activities to accompany CHAPTER 6
C3: Social Statistics in Action: A Canadian Introduction
C4: Andrea M. Noack
C6: Oxford University Press, 2018
C8: For more information, visit:
C9: https://www.oupcanada.com/catalog/9780199015214.html

Sheet Std Error & 95% CIs-means
B1: PRACTICE CALCULATING STANDARD ERRORS AND 95% CONFIDENCE INTERVALS (MEANS)
B3: Calculate the standard error of the mean and upper/lower bounds of the 95% confidence interval for the mean of the cases in the yellow highlighted cells. Keep two decimal places throughout your calculations. To check your answers, click on the 'Show Answers' button.
B6: Case # | C6: Value on Variable X | E6: Sample Statistics
E7: Sample Mean (x-bar): | F7: 9.25
B8: 1 | C8: 17 | E8: Sample Standard Deviation (s): | F8: 6.54
B9: 2 | C9: 18 | E9: Number of Cases (n): | F9: 12
B10: 3 | C10: 12
B11: 4 | C11: 8 | E11: Population Parameters
B12: 5 | C12: 4 | E12: Standard Error of the Mean: | F12: hidden
B13: 6 | C13: 3 | E13: Lower bound of 95% CI for the mean: | F13: hidden
B14: 7 | C14: 13 | E14: Upper bound of 95% CI for the mean: | F14: hidden
B15: 8 | C15: 1
B16: 9 | C16: 18
B17: 10 | C17: 3 | E17: Need some help?
B18: 11 | C18: 12
B19: 12 | C19: 2
B21: STANDARD ERROR OF THE MEAN CALCULATIONS
B22: Numerator
C23: = 6.54
B24: Denominator
C25: = square root of 12
C26: = ?
B27: Standard Error
C28: = 6.54 ÷ 3.46
C29: = ?
B31: 95% CONFIDENCE INTERVAL FOR THE MEAN CALCULATIONS
B32: 1.96 x Std. Error
C33: = 1.96 x 1.89
C34: = ?
B35: Lower bound
C36: = 9.25 - 3.7
C37: = ?
B38: Upper bound
C39: = 9.25 + 3.7
C40: = ?

Sheet Std Error & 95% CIs-proportions
B1: PRACTICE CALCULATING STANDARD ERRORS AND 95% CONFIDENCE INTERVALS (PROPORTIONS)
B3: You have been given the proportion of the cases in the yellow highlighted cells that have a "1" value. Calculate the standard error of the proportion and upper/lower bounds of the 95% confidence interval for the proportion. Keep four decimal places throughout your calculations. To check your answers, click on the 'Show Answers' button.
B6: Case # | C6: Value on Variable X | E6: Sample Statistics
E7: Proportion of Cases with a "1" Value (p): | F7: 0.75
B8: 1 | C8: 1 | E8: Number of Cases (n): | F8: 12
B9: 2 | C9: 1
B10: 3 | C10: 0 | E10: Population Parameters
B11: 4 | C11: 1 | E11: Standard Error of the Proportion: | F11: hidden
B12: 5 | C12: 1 | E12: Lower bound of 95% CI for the proportion: | F12: hidden
B13: 6 | C13: 1 | E13: Upper bound of 95% CI for the proportion: | F13: hidden
B14: 7 | C14: 1
B15: 8 | C15: 1
B16: 9 | C16: 1
B17: 10 | C17: 0 | E17: Need some help?
B18: 11 | C18: 1
B19: 12 | C19: 0
B21: STANDARD ERROR OF A PROPORTION CALCULATIONS
B22: Numerator
C23: = 0.75 x (1 - 0.75)
C24: = ? x ?
C25: = ?
B26: Denominator
C27: = 12
B28: Standard Error
C29: = square root of (0.1875 ÷ 12)
C30: = square root of ?
C31: = ?
B33: 95% CONFIDENCE INTERVAL FOR A PROPORTION CALCULATIONS
B34: 1.96 x Std. Error
C35: = 1.96 x 0.1249
C36: = ?
B37: Lower bound
C38: = 0.75 - 0.2448
C39: = ?
B40: Upper bound
C41: = 0.75 + 0.2448
C42: = ?

Sheet Std Error & 95% CIs-means-A (hidden)
B1: PRACTICE CALCULATING STANDARD ERROR AND 95% CONFIDENCE INTERVALS
B6: Case # | C6: Value | E6: Sample Statistics
A7: =RANDBETWEEN(1,20) -> 8 | B7: 1 | C7: 17 | E7: Sample Mean | F7: =ROUND(AVERAGE(C7:C18),2) -> 9.25 | I7: =C7-$F$7 -> 7.75 | J7: =ROUND(I7^2,2) -> 60.06 | K7: =ROUND(SUM(J7:J18),2) -> 470.22
A8: =RANDBETWEEN(1,20) -> 10 | B8: 2 | C8: 18 | E8: Sample Standard Deviation | F8: =K9 -> 6.54 | I8: =C8-$F$7 -> 8.75 | J8: =ROUND(I8^2,2) -> 76.56 | K8: =ROUND(K7/L8,2) -> 42.75 | L8: =F9-1 -> 11
A9: 13 | B9: 3 | C9: 12 | E9: Number of Cases | F9: =COUNT(C7:C18) -> 12 | I9: 2.75 | J9: 7.56 | K9: =ROUND(SQRT(K8),2) -> 6.54
A10: 5 | B10: 4 | C10: 8 | I10: -1.25 | J10: 1.56
A11: 5 | B11: 5 | C11: 4 | E11: Population Parameters | I11: -5.25 | J11: 27.56
A12: 15 | B12: 6 | C12: 3 | E12: Standard Error of the Mean | F12: =F29 -> 1.89 | I12: -6.25 | J12: 39.06
A13: 4 | B13: 7 | C13: 13 | E13: Lower bound of 95% CI for the mean | F13: =F37 -> 5.55 | I13: 3.75 | J13: 14.06
A14: 17 | B14: 8 | C14: 1 | E14: Upper bound of 95% CI for the mean | F14: =F40 -> 12.95 | I14: -8.25 | J14: 68.06
A15: 12 | B15: 9 | C15: 18 | I15: 8.75 | J15: 76.56
A16: 2 | B16: 10 | C16: 3 | E16: Need help? | I16: -6.25 | J16: 39.06
A17: 15 | B17: 11 | C17: 12 | I17: 2.75 | J17: 7.56
A18: 20 | B18: 12 | C18: 2 | I18: -7.25 | J18: 52.56
B21: STANDARD ERROR OF THE MEAN CALCULATIONS
B22: Numerator:
C23: =CONCATENATE("'= ",F8) -> '= 6.54
B24: Denominator:
C25: =CONCATENATE("'= square root of ",F25) -> '= square root of 12 | F25: 12
C26: =CONCATENATE("'= ",F26) -> '= 3.46 | F26: =ROUND(SQRT(12),2) -> 3.46
B27: Standard error:
C28: =CONCATENATE("'= ",F8," ÷ ",F26) -> '= 6.54 ÷ 3.46
C29: =CONCATENATE("'= ",F29) -> '= 1.89 | F29: =ROUND(F8/F26,2) -> 1.89
B31: CONFIDENCE INTERVAL CALCULATIONS
B32: 1.96 x SE:
C33: =CONCATENATE("'= 1.96 x ",F29,) -> '= 1.96 x 1.89
C34: =CONCATENATE("'= ",F34) -> '= 3.7 | F34: =ROUND(1.96*F29,2) -> 3.7
B35: Lower bound:
C36: =CONCATENATE("'= ",$F$7," - ",$F$34) -> '= 9.25 - 3.7
C37: =CONCATENATE("'= ",F37) -> '= 5.55 | F37: =ROUND($F$7-$F$34,2) -> 5.55
B38: Upper bound:
C39: =CONCATENATE("'= ",$F$7," + ",$F$34) -> '= 9.25 + 3.7
C40: =CONCATENATE("'= ",F40) -> '= 12.95 | F40: =ROUND($F$7+$F$34,2) -> 12.95

Sheet Std Error & 95% CIs-prop-A (hidden)
B1: PRACTICE CALCULATING STANDARD ERRORS AND 95% CONFIDENCE INTERVALS (PROPORTIONS)
B3: You have been given the proportion of the cases in the yellow highlighted cells that have a "1" value. Calculate the standard error of the proportion and upper/lower bounds of the 95% confidence interval for the proportion. Keep four decimal places in your calculations. To check your answers, click on the 'Show Answers' button.
B6: Case # | C6: Value | E6: Sample Statistics
A7: =RANDBETWEEN(0,1) -> 1 | B7: 1 | C7: 1 | E7: Proportion of Cases with a "1" Value | F7: =ROUND(G7/12,4) -> 0.75 | G7: =COUNTIF(C7:C18,1) -> 9
A8: =RANDBETWEEN(0,1) -> 1 | B8: 2 | C8: 1 | E8: Number of Cases | F8: 12
A9: 0 | B9: 3 | C9: 0
A10: 1 | B10: 4 | C10: 1 | E10: Population Parameters
A11: 1 | B11: 5 | C11: 1 | E11: Standard Error of the Proportion | F11: =F31 -> 0.1249
A12: 1 | B12: 6 | C12: 1 | E12: Lower bound of 95% CI for the proportion | F12: =F39 -> 0.5052
A13: 0 | B13: 7 | C13: 1 | E13: Upper bound of 95% CI for the proportion | F13: =F42 -> 0.9948
A14: 0 | B14: 8 | C14: 1
A15: 0 | B15: 9 | C15: 1 | E15: Need some help?
A16: 0 | B16: 10 | C16: 0
A17: 1 | B17: 11 | C17: 1
A18: 0 | B18: 12 | C18: 0
B21: STANDARD ERROR OF A PROPORTION CALCULATIONS
B22: Numerator
C23: =CONCATENATE("'= ",F7," x (1 - ",F7,")") -> '= 0.75 x (1 - 0.75)
C24: =CONCATENATE("'= ",F7," x ",F24) -> '= 0.75 x 0.25 | F24: =ROUND(1-F7,4) -> 0.25
C25: =CONCATENATE("'= ",F25) -> '= 0.1875 | F25: =ROUND(F7*F24,4) -> 0.1875
B26: Denominator
C27: = 12
B28: Standard Error
C29: =CONCATENATE("'= square root of (",F25," ÷ 12)") -> '= square root of (0.1875 ÷ 12)
C30: =CONCATENATE("'= square root of ",F30) -> '= square root of 0.0156 | F30: =ROUND(F25/12,4) -> 0.0156
C31: =CONCATENATE("'= ",F31) -> '= 0.1249 | F31: =ROUND(SQRT(F30),4) -> 0.1249
B33: 95% CONFIDENCE INTERVAL FOR THE PROPORTION CALCULATIONS
B34: 1.96 x Std. Error
C35: =CONCATENATE("'= 1.96 x ",F31) -> '= 1.96 x 0.1249
C36: =CONCATENATE("'= ",F36) -> '= 0.2448 | F36: =ROUND(1.96*F31,4) -> 0.2448
B37: Lower bound
C38: =CONCATENATE("'= ",$F$7," - ",$F$36) -> '= 0.75 - 0.2448
C39: =CONCATENATE("'= ",F39) -> '= 0.5052 | F39: =ROUND(F7-F36,4) -> 0.5052
B40: Upper bound
C41: =CONCATENATE("'= ",$F$7," + ",$F$36) -> '= 0.75 + 0.2448
C42: =CONCATENATE("'= ",F42) -> '= 0.9948 | F42: =ROUND(F7+F36,4) -> 0.9948
